bitfinex/quotes_SOLUSD_20250809
["timestamp","ask_amount","ask_price","bid_price","bid_amount"]
[1754743444179,38.65,181.4,181.39,3.90823268]
[1754743444397,38.65,181.4,181.39,8.82154676]
[1754743444690,39.31,181.4,181.38,4.91331408]
[1754743444995,38.65,181.4,181.39,3.90909312]
[1754743445565,39.31,181.4,181.39,3.90909312]
[1754743446178,44.82267916,181.4,181.39,3.90909312]
[1754743446780,44.82267916,181.4,181.37,4.91331408]
[1754743447008,0.66,181.39,181.38,3.90933784]
[1754743447967,0.66,181.39,181.38,8.82265192]
[1754743448673,38.65,181.4,181.38,8.82265192]
[1754743448877,39.31,181.4,181.39,3.90933784]
[1754743449290,38.65,181.4,181.39,8.82265192]
[1754743451383,39.31,181.4,181.39,3.90933784]
[1754743452291,38.65,181.4,181.39,8.82265192]
[1754743452499,39.31,181.4,181.39,8.82265192]
[1754743454293,0.03,181.4,181.39,9.54265192]
[1754743454492,0.03,181.4,181.39,8.82265192]
[1754743455403,0.69,181.4,181.39,8.82265192]
[1754743457207,0.69,181.4,181.39,3.90933784]
[1754743457716,26.22220881,181.4,181.39,3.90933784]
[1754743458210,21.30889473,181.4,181.39,3.90933784]
[1754743459592,21.30889473,181.4,181.38,4.91331408]
[1754743459791,21.30889473,181.4,181.39,3.90883786]
[1754743460420,21.30889473,181.4,181.38,4.91331408]
[1754743460720,6.17298734,181.39,181.34,32.29440149]
[1754743460900,39.28,181.38,181.37,4.91331408]
[1754743461220,39.28,181.38,181.37,8.82219478]
[1754743461603,38.62,181.38,181.37,8.82219478]
[1754743463430,38.62,181.38,181.37,9.54219478]
[1754743464608,38.62,181.38,181.37,4.6288807]
[1754743464809,38.62,181.38,181.37,9.54219478]
[1754743465912,38.62,181.38,181.37,8.82219478]
[1754743466926,38.62,181.38,181.37,9.54219478]
[1754743468217,38.62,181.38,181.37,4.6288807]
[1754743468428,38.62,181.38,181.37,3.9088807]
[1754743468726,38.62,181.38,181.37,8.82219478]
[1754743469627,0.03,181.4,181.37,8.82219478]
[1754743469927,0.73,181.4,181.39,4.91331408]
[1754743470124,39.3,181.39,181.35,6.23417796]
[1754743470434,38.6,181.39,181.36,3.90883411]
[1754743470733,38.6,181.39,181.37,3.90884628]
[1754743470917,38.6,181.39,181.38,3.90884628]
[1754743471645,39.3,181.39,181.38,3.90884628]
[1754743474725,38.6,181.39,181.38,8.82216036]
[1754743479439,39.3,181.39,181.38,8.82216036]
[1754743479827,38.6,181.39,181.38,8.82216036]
[1754743480317,39.3,181.39,181.38,8.82216036]
[1754743482438,39.3,181.39,181.38,8.83619771]
[1754743483038,38.6,181.39,181.38,8.83619771]
[1754743485443,38.6,181.39,181.38,8.83601092]
[1754743485825,38.6,181.39,181.38,3.98269684]
[1754743486123,38.6,181.39,181.38,8.89601092]
[1754743487627,39.3,181.39,181.38,8.89601092]
[1754743487937,39.3,181.39,181.38,3.98269684]
[1754743488144,44.81298307,181.39,181.38,3.98269684]
[1754743492854,44.81298307,181.39,181.38,3.98459447]
[1754743493248,59.91919864,181.39,181.38,3.98459447]
[1754743493424,64.83251272,181.39,181.38,3.98459447]
[1754743493740,59.91919864,181.39,181.38,3.98459447]
[1754743494127,59.91919864,181.39,181.38,0.06]
[1754743494327,59.91919864,181.39,181.38,3.98481472]
[1754743494745,59.91919864,181.39,181.38,8.8981288]
[1754743495530,59.91919864,181.39,181.38,3.98481472]
[1754743496354,44.81298307,181.39,181.38,8.8981288]
[1754743497541,44.81298307,181.39,181.38,3.98481472]
[1754743500454,39.3,181.39,181.38,3.98481472]
[1754743500640,38.6,181.39,181.38,7.1372418]
[1754743500838,38.6,181.39,181.38,3.98481472]
[1754743501142,39.26,181.39,181.38,7.1372418]
[1754743501343,44.77298307,181.39,181.38,3.98481472]
[1754743501672,63.03162572,181.39,181.38,0.06]
[1754743501826,15.76621557,181.39,181.38,7.12463819]
[1754743502025,39.24,181.39,181.38,3.21242708]
[1754743502334,44.75298307,181.39,181.38,3.97059328]
[1754743502642,63.57614921,181.39,181.38,3.97059328]
[1754743503165,58.06316614,181.39,181.38,3.97059328]
[1754743503858,42.29695057,181.39,181.38,3.97059328]
[1754743504161,42.29695057,181.39,181.38,7.12302036]
[1754743504560,3.71695057,181.39,181.38,13.34630738]
[1754743504757,0.03,181.4,181.38,13.34630738]
[1754743504955,0.03,181.4,181.39,7.77302036]
[1754743505459,0.03,181.4,181.39,9.97973436]
[1754743505660,0.03,181.4,181.39,7.77302036]
[1754743505960,0.03,181.41,181.4,31.51267916]
[1754743506258,0.03,181.41,181.4,39.28569952]
[1754743506860,0.03,181.41,181.4,41.05451444]
[1754743507152,0.03,181.41,181.4,29.91059328]
[1754743507329,0.03,181.41,181.4,35.54183528]
[1754743508353,0.03,181.41,181.4,35.53982227]
[1754743508648,0.03,181.41,181.4,8.82982227]
[1754743509652,0.03,181.41,181.4,15.05250143]
[1754743514042,0.03,181.41,181.4,15.04756626]
[1754743514765,0.03,181.41,181.4,14.33756626]
[1754743516171,0.03,181.41,181.4,16.54403726]
[1754743516550,0.03,181.41,181.4,17.25403726]
[1754743516955,0.03,181.41,181.4,17.25311481]
[1754743517171,0.03,181.41,181.4,12.33187281]
[1754743517340,0.03,181.41,181.4,16.54311481]
[1754743517543,0.69,181.41,181.4,3.90272265]
[1754743517844,0.03,181.41,181.4,8.82396465]
[1754743518942,0.69,181.41,181.4,8.82396465]
[1754743521159,0.69,181.41,181.39,4.921242]
[1754743521363,0.69,181.41,181.4,3.90435008]
[1754743521962,6.20237528,181.41,181.4,3.90435008]
[1754743522440,6.20237528,181.41,181.38,0.06]
[1754743522441,15.10621557,181.4,181.38,0.06]
[1754743522763,15.76621557,181.4,181.39,3.90560413]
[1754743522952,53.66621557,181.4,181.39,3.90513495]
[1754743523594,58.03313275,181.4,181.38,0.06]
[1754743523775,59.17889473,181.4,181.39,3.90494265]
[1754743523947,44.07267916,181.4,181.39,3.90494265]
[1754743524271,63.54581337,181.4,181.38,0.06]
[1754743524441,59.17889473,181.4,181.39,3.90496127]
[1754743525067,59.83889473,181.4,181.39,3.90496127]
[1754743525671,0.03,181.41,181.39,8.82620327]
[1754743525844,38.59,181.41,181.4,3.90431673]
[1754743526045,39.25,181.41,181.4,3.90431673]
[1754743527859,38.59,181.41,181.4,8.82555873]
[1754743530780,38.59,181.41,181.4,15.01823789]
[1754743530781,0.03,181.41,181.4,15.01823789]
[1754743530956,0.03,181.41,181.4,15.07823789]
[1754743534583,0.03,181.41,181.4,15.08127158]
[1754743537459,0.03,181.41,181.4,15.07847458]
[1754743539895,0.03,181.41,181.4,17.28494458]
[1754743540459,0.03,181.41,181.4,15.07847458]
[1754743541669,0.03,181.42,181.4,17.28470158]
[1754743541876,0.03,181.42,181.41,40.97827494]
[1754743542383,0.03,181.42,181.41,36.05703294]
[1754743542593,0.03,181.42,181.41,35.50579542]
[1754743543383,0.03,181.42,181.41,41.0181707]
[1754743543761,0.03,181.42,181.41,78.8981707]
[1754743544380,0.72,181.42,181.41,78.8981707]
[1754743544684,0.03,181.42,181.41,40.3381707]
[1754743546691,0.03,181.42,181.41,42.5445197]
[1754743547775,0.72,181.42,181.41,40.3381707]
[1754743548388,0.03,181.42,181.41,40.3381707]
[1754743548584,0.03,181.42,181.41,41.0181707]
[1754743548994,0.03,181.42,181.41,43.2246417]
[1754743549370,0.03,181.42,181.41,81.7846417]
[1754743549571,0.03,181.42,181.41,82.33587922]
[1754743550373,0.03,181.42,181.41,81.7846417]
[1754743551197,0.03,181.42,181.41,82.33587922]
[1754743552672,0.03,181.42,181.41,85.12184236]
[1754743552891,0.03,181.42,181.41,84.57060484]
[1754743553400,0.03,181.44,181.43,26.0]
[1754743553704,0.03,181.44,181.43,78.30578687]
[1754743553895,0.03,181.44,181.43,78.98578687]
[1754743554094,0.03,181.44,181.43,81.19164887]
[1754743554302,0.03,181.44,181.43,81.74282563]
[1754743555304,0.03,181.44,181.43,87.25459325]
[1754743559415,0.03,181.46,181.43,87.25459325]
[1754743559713,0.03,181.47,181.43,87.25459325]
[1754743559714,0.03,181.47,181.46,26.0]
[1754743560006,0.03,181.47,181.46,73.36454487]
[1754743560183,0.7,181.5,181.46,74.06454487]
[1754743560388,0.7,181.5,181.49,30.921242]
[1754743560584,0.7,181.5,181.49,73.36454487]
[1754743560895,0.03,181.5,181.49,81.07998732]
[1754743561414,0.03,181.51,181.5,35.842484]
[1754743561615,0.7,181.51,181.5,34.82454487]
[1754743561974,0.03,181.51,181.5,34.82454487]
[1754743562600,0.03,181.51,181.5,39.74578687]
[1754743562899,0.03,181.51,181.5,45.25542874]
[1754743563099,0.03,181.51,181.5,42.53919774]
[1754743563408,0.03,181.51,181.5,43.23919774]
[1754743563777,0.03,181.53,181.51,26.0]
[1754743563978,0.03,181.53,181.52,52.28578687]
[1754743564198,0.03,181.53,181.52,47.36454487]
[1754743564579,0.7,181.53,181.52,47.36454487]
[1754743564878,0.7,181.53,181.52,52.87357968]
[1754743565982,0.7,181.53,181.52,8.82454487]
[1754743566396,0.7,181.53,181.52,14.33357968]
[1754743566590,0.7,181.53,181.52,8.82454487]
[1754743568800,0.7,181.53,181.52,4.921242]
[1754743569003,0.7,181.53,181.52,8.80354221]
[1754743569509,0.7,181.53,181.52,4.921242]
[1754743569712,0.7,181.53,181.52,8.8033461]
[1754743570292,0.7,181.53,181.52,4.921242]
[1754743571005,0.7,181.53,181.49,64.54]
[1754743571315,0.7,181.53,181.51,4.921242]
[1754743572094,6.20880421,181.53,181.5,4.921242]
[1754743572303,0.67,181.52,181.49,4.921242]
[1754743572708,5.591242,181.52,181.47,4.921242]
[1754743573011,6.17933832,181.51,181.47,4.921242]
[1754743573191,5.50933832,181.51,181.47,4.921242]
[1754743573398,0.67,181.5,181.47,4.921242]
[1754743573629,0.67,181.5,181.48,4.921242]
[1754743575802,0.67,181.5,181.49,4.921242]
[1754743576025,0.03,181.53,181.49,8.86849793]
[1754743576202,0.67,181.52,181.5,4.921242]
[1754743580321,5.53885021,181.53,181.5,4.921242]
[1754743580508,0.67,181.51,181.5,4.921242]
[1754743582127,0.67,181.51,181.5,8.81022545]
[1754743582420,0.67,181.51,181.5,4.921242]
[1754743582624,0.67,181.51,181.5,8.81050556]
[1754743582822,0.67,181.51,181.5,4.921242]
[1754743583010,0.03,181.53,181.5,4.921242]
[1754743583431,0.67,181.52,181.5,4.921242]
[1754743583726,0.67,181.51,181.5,4.921242]
[1754743583931,0.67,181.51,181.5,8.8081451]
[1754743585532,0.03,181.53,181.5,8.8081451]
[1754743585707,0.03,181.53,181.52,4.921242]
[1754743586027,0.03,181.53,181.52,8.8081451]
[1754743586522,0.03,181.53,181.52,9.51256691]
[1754743587624,0.03,181.53,181.52,15.02160172]
[1754743589442,0.03,181.53,181.52,15.0213401]
[1754743590222,0.03,181.53,181.52,14.3213401]
[1754743590427,0.7,181.53,181.52,14.3213401]
[1754743590832,0.03,181.53,181.52,14.3213401]
[1754743591551,0.03,181.53,181.52,15.0213401]
[1754743593433,0.03,181.53,181.52,14.3213401]
[1754743594647,0.03,181.53,181.52,15.0213401]
[1754743596051,0.03,181.53,181.52,53.5413401]
[1754743596845,0.03,181.53,181.52,52.8413401]
[1754743597035,0.7,181.53,181.52,52.8413401]
[1754743597439,0.03,181.53,181.52,14.3213401]
[1754743598653,0.03,181.53,181.52,14.3813401]
[1754743599030,0.03,181.53,181.52,15.0813401]
[1754743599767,0.03,181.53,181.52,20.0025821]
[1754743600455,0.03,181.53,181.52,58.5225821]
[1754743600648,0.03,181.53,181.52,60.7273501]
[1754743605358,0.03,181.53,181.52,149.4273501]
[1754743606563,0.03,181.55,181.52,60.7273501]
[1754743606773,0.03,181.57,181.56,26.0]
[1754743607061,0.03,181.57,181.56,73.31230529]
[1754743607062,0.7,181.57,181.56,73.31230529]
[1754743607258,0.03,181.57,181.56,8.81230529]
[1754743607641,0.03,181.57,181.56,14.32012639]
[1754743607842,0.7,181.57,181.56,9.39888439]
[1754743608048,0.7,181.57,181.56,14.32012639]
[1754743609663,0.7,181.57,181.56,9.39888439]
[1754743609869,0.7,181.57,181.56,14.32012639]
[1754743610071,0.7,181.57,181.56,8.81230529]
[1754743613481,0.03,181.57,181.56,14.32012639]
[1754743614466,0.03,181.57,181.56,15.02012639]
[1754743616242,0.03,181.57,181.56,103.72012639]
[1754743616671,0.03,181.57,181.56,129.72012639]
[1754743618684,0.03,181.57,181.56,129.02012639]
[1754743618975,0.7,181.57,181.56,129.02012639]
[1754743619178,0.03,181.57,181.56,167.52012639]
[1754743619479,0.03,181.57,181.56,168.22012639]
[1754743619974,0.03,181.57,181.56,79.52012639]
[1754743620183,0.03,181.57,181.56,78.82012639]
[1754743621455,0.03,181.57,181.56,79.52012639]
[1754743621765,0.03,181.57,181.56,53.52012639]
[1754743622079,0.03,181.57,181.56,55.72440839]
[1754743622378,0.03,181.58,181.56,71.38140607]
[1754743622575,0.03,181.58,181.57,9.51230529]
[1754743623663,0.03,181.58,181.57,15.01982305]
[1754743624184,0.03,181.58,181.57,32.33007762]
[1754743624959,0.1,181.59,181.57,32.33007762]
[1754743625165,0.1,181.59,181.58,53.51951974]
[1754743625680,0.1,181.59,181.58,52.81951974]
[1754743625984,0.1,181.59,181.58,143.72343774]
[1754743628888,0.1,181.59,181.58,143.80936199]
[1754743629364,0.1,181.59,181.58,144.50936199]
[1754743630164,0.1,181.59,181.58,143.80936199]
[1754743631562,0.1,181.59,181.58,139.83237445]
[1754743632489,0.1,181.59,181.58,140.53237445]
[1754743633896,0.1,181.59,181.58,144.5093876]
[1754743634680,0.1,181.59,181.58,143.8093876]
[1754743637204,0.77,181.59,181.58,143.8093876]
[1754743637393,0.77,181.59,181.58,73.39825515]
[1754743637697,0.77,181.59,181.58,52.9054696]
[1754743637886,0.77,181.59,181.58,14.4054696]
[1754743640581,0.77,181.59,181.58,8.89825515]
[1754743641906,0.77,181.59,181.58,3.97701315]
[1754743642398,0.77,181.59,181.58,8.95825515]
[1754743642907,0.77,181.59,181.58,4.03701315]
[1754743643601,6.27691117,181.59,181.58,4.03701315]
[1754743643801,11.19815317,181.59,181.58,4.03701315]
[1754743645491,11.19815317,181.59,181.58,4.04746379]
[1754743645695,11.19815317,181.59,181.58,0.06]
[1754743646394,26.30436874,181.59,181.58,0.06]
[1754743654619,64.80436874,181.59,181.58,0.06]
[1754743661736,59.88312674,181.59,181.58,0.06]
[1754743661932,64.80436874,181.59,181.58,0.06]
[1754743662541,59.23312674,181.59,181.58,0.06]
[1754743662854,38.62,181.59,181.58,0.06]
[1754743664147,38.62,181.59,181.58,0.78]
[1754743664351,38.62,181.59,181.58,5.701242]
[1754743664946,0.1,181.59,181.58,15.11538577]
[1754743667148,0.1,181.59,181.58,41.11538577]
[1754743668840,0.1,181.59,181.58,15.11538577]
[1754743669354,0.1,181.59,181.58,53.63538577]
[1754743671452,0.1,181.6,181.58,53.63538577]
[1754743671651,0.1,181.6,181.59,35.54817132]
[1754743672452,0.1,181.6,181.59,41.05508249]
[1754743672850,0.1,181.6,181.59,43.25912149]
[1754743673754,0.1,181.6,181.59,81.75912149]
[1754743674053,0.1,181.6,181.59,78.83508249]
[1754743675648,0.1,181.6,181.59,73.32817132]
[1754743675834,0.1,181.6,181.59,78.83508249]
[1754743676938,0.1,181.6,181.59,35.41384049]
[1754743677139,0.1,181.6,181.59,40.33508249]
[1754743678039,0.78,181.6,181.59,8.82817132]
[1754743679748,0.78,181.6,181.58,0.06]
[1754743680060,0.78,181.6,181.58,3.96842123]
[1754743681276,0.68,181.59,181.58,8.88966323]
[1754743683967,0.1,181.6,181.58,8.88966323]
[1754743684179,0.1,181.6,181.59,8.82966323]
[1754743685641,0.1,181.6,181.59,3.90842123]
[1754743685845,0.1,181.6,181.59,8.82966323]
[1754743687263,0.78,181.6,181.59,3.90842123]
[1754743687464,0.78,181.6,181.58,4.981242]
[1754743687662,0.1,181.6,181.59,3.90163562]
[1754743687850,0.1,181.6,181.59,8.82287762]
[1754743688043,0.1,181.6,181.59,15.02978879]
[1754743689069,0.1,181.6,181.59,15.02763429]
[1754743696879,0.1,181.6,181.59,53.52763429]
[1754743697689,0.1,181.6,181.59,52.82763429]
[1754743699179,0.1,181.6,181.59,53.52763429]
[1754743699584,0.1,181.6,181.59,52.82763429]
[1754743701575,0.1,181.6,181.59,53.52763429]
[1754743703090,0.03,181.61,181.59,58.44887629]
[1754743703383,0.03,181.63,181.62,26.0]
[1754743703676,0.03,181.63,181.62,78.24196512]
[1754743703880,0.03,181.64,181.62,78.94196512]
[1754743704066,0.03,181.64,181.63,14.32642151]
[1754743704388,0.03,181.64,181.63,15.02642151]
[1754743705384,0.03,181.64,181.63,17.83654689]
[1754743705886,0.03,181.65,181.63,17.83654689]
[1754743706062,0.03,181.65,181.64,79.5061184]
[1754743707182,0.68,181.71,181.64,53.5061184]
[1754743707364,0.68,181.71,181.65,8.82072312]
[1754743707679,0.68,181.7,181.65,9.52072312]
[1754743707871,15.10621557,181.75,181.65,9.52072312]
[1754743707872,0.68,181.69,181.65,8.82072312]
[1754743708278,0.68,181.69,181.65,14.32581533]
[1754743710062,0.66,181.71,181.65,19.41094535]
[1754743710257,0.66,181.7,181.65,19.41094535]
[1754743710783,0.66,181.71,181.65,19.41094535]
[1754743710960,0.66,181.72,181.68,26.0]
[1754743711295,0.66,181.72,181.71,4.921242]
[1754743711471,0.66,181.72,181.71,10.42451644]
[1754743712282,0.66,181.74,181.71,14.32252601]
[1754743712483,10.4219932,181.8,181.73,4.921242]
[1754743712654,10.4219932,181.8,181.71,48.90451644]
[1754743712655,10.4219932,181.8,181.75,4.921242]
[1754743712855,4.921242,181.79,181.75,4.921242]
[1754743713172,0.66,181.78,181.75,4.921242]
[1754743714869,6.16131546,181.78,181.75,4.921242]
[1754743715184,0.66,181.77,181.75,4.921242]
[1754743715385,0.03,181.76,181.75,4.921242]
[1754743715686,0.69,181.76,181.75,4.921242]
[1754743715996,0.69,181.76,181.71,38.48]
[1754743716173,0.69,181.76,181.73,4.921242]
[1754743716365,4.921242,181.75,181.69,26.0]
[1754743716675,5.581242,181.74,181.7,3.91464914]
[1754743716878,4.921242,181.74,181.7,3.91464914]
[1754743717076,0.66,181.73,181.7,3.91464914]
[1754743717880,0.66,181.73,181.7,4.921242]
[1754743718077,6.16280916,181.73,181.7,4.921242]
[1754743718282,5.50280916,181.73,181.7,4.921242]
[1754743718585,0.66,181.72,181.7,4.921242]
[1754743719577,0.66,181.71,181.7,4.921242]
[1754743719882,0.66,181.74,181.7,8.83532476]
[1754743720081,0.66,181.73,181.72,4.921242]
[1754743720461,0.66,181.75,181.72,4.921242]
[1754743720891,0.66,181.75,181.74,4.921242]
[1754743723299,0.66,181.75,181.73,4.921242]
[1754743723996,0.66,181.74,181.73,4.921242]
[1754743724585,0.69,181.76,181.73,4.921242]
[1754743724785,0.66,181.75,181.73,4.921242]
[1754743725001,0.66,181.75,181.74,4.921242]
[1754743730794,0.69,181.75,181.74,4.921242]
[1754743733202,0.03,181.75,181.74,4.921242]
[1754743737299,0.03,181.75,181.74,8.83276846]
[1754743738280,0.03,181.75,181.74,3.91152646]
[1754743738504,0.03,181.75,181.74,8.83276846]
[1754743741009,0.03,181.75,181.74,3.91152646]
[1754743741321,0.74,181.75,181.74,4.921242]
[1754743741507,0.74,181.75,181.71,5.50324681]
[1754743741708,0.74,181.75,181.74,4.921242]
[1754743742489,0.74,181.75,181.74,8.84327021]
[1754743742891,0.03,181.75,181.74,8.84327021]
[1754743744516,0.74,181.75,181.74,8.84327021]
[1754743744815,0.03,181.75,181.74,15.04563622]
[1754743747493,0.03,181.75,181.74,53.50563622]
[1754743748698,0.03,181.75,181.74,15.04563622]
[1754743748991,0.03,181.75,181.74,53.50563622]
[1754743749193,0.03,181.75,181.74,53.51420788]
[1754743749605,0.03,181.75,181.74,52.81420788]
[1754743750423,0.03,181.75,181.74,53.51420788]
[1754743751002,0.03,181.75,181.74,52.81420788]
[1754743751208,0.74,181.75,181.74,8.85184187]
[1754743752018,0.74,181.75,181.74,3.93059987]
[1754743752219,0.74,181.75,181.74,8.85184187]
[1754743752896,0.74,181.75,181.74,3.93059987]
[1754743757930,6.24206327,181.75,181.74,3.93059987]
[1754743758229,0.74,181.75,181.74,3.93059987]
[1754743758532,0.03,181.75,181.74,3.93059987]
[1754743758907,0.74,181.75,181.74,3.93059987]
[1754743761429,0.03,181.75,181.74,3.93059987]
[1754743761644,0.74,181.75,181.74,3.93059987]
[1754743767523,11.16330527,181.75,181.74,3.93059987]
[1754743768628,90.70952084,181.75,181.74,3.93059987]
[1754743768840,90.70952084,181.75,181.66,11.223306]
[1754743768841,104.46467902,181.75,181.66,11.223306]
[1754743769040,4.921242,181.7,181.67,3.94470863]
[1754743769225,26.0,181.72,181.68,3.94470863]
[1754743769425,4.921242,181.7,181.69,3.94470863]
[1754743769935,11.10481932,181.7,181.69,3.94470863]
[1754743771444,5.601242,181.7,181.69,3.94470863]
[1754743771952,0.68,181.7,181.69,3.94470863]
[1754743772155,6.18357732,181.7,181.69,3.94470863]
[1754743772334,11.10481932,181.7,181.69,3.94470863]
[1754743775124,26.21103489,181.7,181.69,3.94470863]
[1754743775330,26.21103489,181.7,181.66,0.06]
[1754743775554,4.921242,181.68,181.67,3.94098202]
[1754743776036,5.601242,181.68,181.67,3.94098202]
[1754743776549,0.68,181.68,181.67,3.94098202]
[1754743780360,10.42521683,181.69,181.67,3.94098202]
[1754743780559,6.18397483,181.69,181.68,3.94098202]
[1754743781344,6.18397483,181.69,181.67,3.94098202]
[1754743781659,6.18397483,181.69,181.68,3.94098202]
[1754743781853,6.18397483,181.69,181.67,3.94098202]
[1754743782062,6.18397483,181.69,181.68,3.94098202]
[1754743782261,0.68,181.69,181.68,3.9354817]
[1754743782557,25.5310903,181.7,181.68,3.9354817]
[1754743782761,0.68,181.69,181.66,0.06]
[1754743782942,0.68,181.69,181.67,3.93530348]
[1754743783242,0.68,181.69,181.68,3.93530348]
[1754743783436,0.68,181.69,181.67,3.93530348]
[1754743783661,10.42512223,181.69,181.66,0.06]
[1754743783843,10.42512223,181.69,181.67,3.93520142]
[1754743784256,44.061242,181.68,181.66,0.06]
[1754743784459,4.921242,181.67,181.66,0.06]
[1754743784662,5.601242,181.67,181.66,3.9954633]
[1754743784853,5.601242,181.67,181.66,0.06]
[1754743785550,11.10572815,181.67,181.66,0.06]
[1754743789252,5.601242,181.67,181.66,0.06]
[1754743789566,0.68,181.67,181.66,0.06]
[1754743790371,11.10572815,181.67,181.66,0.06]
[1754743791462,5.601242,181.67,181.66,0.06]
[1754743791968,0.68,181.67,181.66,0.06]
[1754743793051,6.18448615,181.67,181.66,0.06]
[1754743793252,11.10572815,181.67,181.66,0.06]
[1754743795178,5.601242,181.67,181.66,0.06]
[1754743795671,4.921242,181.67,181.66,0.06]
[1754743796476,4.921242,181.67,181.66,3.99489702]
[1754743797054,43.381242,181.67,181.66,3.99489702]
[1754743797769,43.411242,181.67,181.66,3.99648026]
[1754743797962,38.49,181.67,181.66,3.99648026]
[1754743798173,43.411242,181.67,181.66,3.99648026]
[1754743798466,43.411242,181.67,181.66,0.06]
[1754743798663,38.49,181.67,181.66,3.99648026]
[1754743799065,38.49,181.67,181.66,0.06]
[1754743799275,38.49,181.67,181.66,3.99690089]
[1754743799462,0.03,181.67,181.66,3.99690089]
[1754743799654,38.47,181.67,181.66,3.99690089]
[1754743800864,0.03,181.67,181.66,4.66690089]
[1754743801065,38.47,181.67,181.66,4.66690089]
[1754743801281,0.03,181.67,181.66,15.09293205]
[1754743801651,0.03,181.67,181.66,4.66690089]
[1754743802653,0.03,181.67,181.66,3.99690089]
[1754743804683,0.03,181.67,181.66,8.90671062]
[1754743806064,0.75,181.67,181.66,3.99690089]
[1754743806382,5.65980973,181.67,181.66,3.99690089]
[1754743806974,0.75,181.67,181.66,3.99690089]
[1754743807266,0.03,181.67,181.66,3.99690089]
[1754743807973,0.75,181.67,181.66,3.99690089]
[1754743808664,39.19,181.67,181.66,3.99690089]
[1754743809380,0.75,181.67,181.66,3.99690089]
[1754743809587,39.19,181.67,181.66,3.98414296]
[1754743810171,0.03,181.67,181.66,3.98414296]
[1754743810372,38.47,181.67,181.66,3.98414296]
[1754743811090,0.03,181.67,181.66,3.98414296]
[1754743811287,0.03,181.67,181.66,9.56395269]
[1754743811681,0.03,181.67,181.66,3.98414296]
[1754743814203,0.03,181.67,181.66,4.65414296]
[1754743814570,0.03,181.67,181.66,15.06874185]
[1754743816701,0.03,181.67,181.66,14.39874185]
[1754743816878,0.03,181.71,181.69,26.0]
[1754743817086,0.03,181.71,181.7,14.41376242]
[1754743817286,0.03,181.71,181.7,16.61646642]
[1754743818398,0.03,181.71,181.7,22.12004374]
[1754743821406,0.03,181.71,181.7,17.21023401]
[1754743821992,0.03,181.71,181.7,22.12004374]
[1754743833010,0.03,181.71,181.7,110.82004374]
[1754743834018,1e-08,181.71,181.7,111.37040147]
[1754743834215,0.03,181.73,181.7,111.37040147]
[1754743834216,0.03,181.73,181.72,26.0]
[1754743834407,0.03,181.75,181.72,73.24873383]
[1754743834600,0.03,181.75,181.73,9.48873383]
[1754743834801,0.03,181.75,181.73,11.69083083]
[1754743835832,0.03,181.75,181.73,11.03083083]
[1754743836031,0.7,181.74,181.73,40.33140262]
[1754743839923,0.03,181.74,181.73,40.33140262]
[1754743842931,0.03,181.74,181.73,42.53386462]
[1754743843138,0.03,181.74,181.73,42.53311628]
[1754743844336,0.03,181.74,181.73,80.93311628]
[1754743845330,0.03,181.74,181.73,42.53311628]
[1754743846820,0.03,181.74,181.73,43.19311628]
[1754743847641,0.03,181.74,181.73,80.93311628]
[1754743848934,0.03,181.74,181.73,80.9310552]
[1754743850741,0.7,181.74,181.73,40.3285932]
[1754743854421,0.03,181.74,181.73,40.3285932]
[1754743857943,0.7,181.74,181.73,40.3285932]
[1754743859030,0.7,181.74,181.73,35.41878347]